Cogmind - Beta 15 @@@ ROGUE MODE // 2025.07.11 @ 22:14:03 Player: beans Result: Destroyed by H-55 Commando with Gauss Rifle Performance ------------- Evolutions (1) 500 Regions Visited (5) 1000 Robots Destroyed (48) 240 Value Destroyed (883) 883 Prototype IDs (25) 500 Alien Tech Used (0) 0 Bonus (332) 332 TOTAL SCORE: 3455 Bonus ------- High Alert Combat Kills 32 Aligned with FarCom 300 Cogmind --------- Core Integrity 0/400 Matter 204/300 Energy 280/280 System Corruption 2% Temperature Cool (0) Movement Treading (240) Ox1 Location -8/Mines Parts ------- > --- POWER (1) -------- Heavy Ion Engine > --- PROPULSION (2) --- Improved Treads > --- UTILITY (4) ------ Scrap Suit Signal Interpreter Hacking Suite > --- WEAPON (2) ------- Guided Plasma Cannon EMP Blaster > --- INVENTORY (5) ---- Heavy Assault Rifle Heavy Assault Rifle Autogun Grenade Launcher Grenade Launcher Peak State ------------ > --- POWER ------------ Heavy Ion Engine > --- PROPULSION ------- Improved Treads > --- UTILITY ---------- Scrap Suit Signal Interpreter Hacking Suite > --- WEAPON ----------- Guided Plasma Cannon EMP Blaster > --- INVENTORY -------- Assault Rifle Heavy Assault Rifle Autogun Grenade Launcher Grenade Launcher [Rating: 27] Favorites ----------- Power Heavy Ion Engine Engine Heavy Ion Engine Propulsion Improved Treads Treads Improved Treads Utility Hacking Suite Device Scrap Suit Processor Signal Interpreter Hackware Hacking Suite Weapon EMP Blaster Energy Cannon Guided Plasma Cannon Ballistic Gun Assault Rifle Launcher EMP Blaster Build | -11 -10 -9 -9 -9 -8 ------- Run | Yrd Mat Mat Min Exi Min Slots Evolved 2 | . . 2 . . . Power . | . . . . . . Propulsion . | . . . . . . Utility 2 | . . 2 . . . Weapon . | . . . . . . Parts Attached 23 | 5 2 14 1 1 . Power 2 | 1 . 1 . . . Engine 2 | 1 . 1 . . . Core . | . . . . . . Reactor . | . . . . . . Propulsion 3 | 2 . 1 . . . Treads 3 | 2 . 1 . . . Leg . | . . . . . . Wheel . | . . . . . . Hover . | . . . . . . Flight . | . . . . . . Utility 8 | . 2 5 1 . . Device 2 | . . 1 1 . . Storage . | . . . . . . Processor 5 | . 2 3 . . . Hackware 1 | . . 1 . . . Protection . | . . . . . . Artifact . | . . . . . . Weapon 10 | 2 . 7 . 1 . Energy Gun . | . . . . . . Energy Cannon 1 | . . . . 1 . Ballistic Gun 6 | 2 . 4 . . . Ballistic Cannon . | . . . . . . Launcher 3 | . . 3 . . . Special Weapon . | . . . . . . Impact Weapon . | . . . . . . Slashing Weapon . | . . . . . . Piercing Weapon . | . . . . . . Special Melee Weapon . | . . . . . . Unidentified Prototypes 2 | . . 2 . . . Parts Lost 6 | . . 6 . . . Power 1 | . . 1 . . . Propulsion 1 | . . 1 . . . Utility 1 | . . 1 . . . Weapon 3 | . . 3 . . . Highest Loss Streak 3 | . . 3 . . . To Critical Strikes . | . . . . . . Average Backups 4 | . 2 3 4 4 5 Power . | . . . . . . Propulsion . | . . . . . . Utility . | . . . . . . Weapon 4 | . 1 3 4 4 5 Tool/Special . | . . . . . . Unused Backups 3 | . . . 1 . 2 Power . | . . . . . . Propulsion . | . . . . . . Utility 1 | . . . 1 . . Weapon 2 | . . . . . 2 Tool/Special . | . . . . . . Average Slot Usage (%) 76 | . 91 65 78 77 77 Engine 10 | . 14 8 11 11 11 Treads 11 | . 28 5 11 11 11 Device 7 | . . . 9 11 11 Processor 14 | . 19 19 14 11 11 Hackware 9 | . . 11 11 11 11 Energy Cannon 5 | . . . . 6 11 Ballistic Gun 8 | . 28 14 11 4 . Launcher 8 | . . 6 11 10 11 Peak Build Rating 27 | 5 7 17 22 27 27 Average Rating 19 | 3 6 10 20 24 27 On Entrance 12 | . 5 7 17 21 27 Naked Turns . | . . . . . . Heaviest Build 26 | 9 9 15 19 26 26 Greatest Support 40 | 40 40 40 23 23 23 Greatest Overweight (x) 4 | 1 . 4 . 1 1 Average Overweight (x) . | . . 1 . . 1 Largest Inventory Capacity 5 | 5 5 5 5 5 5 Average Capacity 5 | 5 5 5 5 5 5 Most Carried 5 | 2 4 5 5 5 5 Average Carried 4 | . 2 3 4 4 5 Final Capacity 5 | 5 5 5 5 5 5 Final Carried 5 | . 4 5 5 5 5 Class Distribution -------------------- 100% | Mutant Dominant Class ---------------- Mutant | -10/Materials Mutant | -9/Materials Mutant | -9/Mines Mutant | -9/Exiles Mutant | -8/Mines Resources | -11 -10 -9 -9 -9 -8 ----------- Run | Yrd Mat Mat Min Exi Min Matter Collected 919 | 188 106 497 104 . 24 Remotely . | . . . . . . Salvage Created 1056 | . 188 749 65 . 54 Parts 86 | . 20 54 7 . 5 Haulers Intercepted 2 | . 1 1 . . . Recyclers Shooed 3 | . . 3 . . . Parts Field Recycled . | . . . . . . Retrieved Matter . | . . . . . . Parts Self-Destructed . | . . . . . . Prevented . | . . . . . . Kills | -11 -10 -9 -9 -9 -8 ------- Run | Yrd Mat Mat Min Exi Min Combat Hostiles Destroyed 32 | . 5 21 2 . 4 Melee 1 | . . 1 . . . Guns 15 | . 5 10 . . . Cannons 4 | . . . . . 4 AOE 12 | . . 10 2 . . Classes Destroyed 9 | . 4 5 . . . Builder 5 | . . 5 . . . Hauler 2 | . 1 1 . . . Recycler 5 | . . 4 1 . . Operator 2 | . 2 . . . . Watcher 2 | . . 2 . . . Swarmer 19 | . 3 10 2 . 4 Grunt 10 | . 2 8 . . . Duelist 1 | . . 1 . . . Sentry 2 | . . 2 . . . Best Kill Streak 9 | . 5 9 2 . 4 Combat Bots Only 7 | . 3 7 2 . 4 Max Kills in Single Turn 3 | . 1 3 2 . 1 Gunslinging . | . . . . . . Exploded 3 | . . 3 2 . . Melee 1 | . . 1 . . . Uniques/NPCs Destroyed . | . . . . . . Combat | -11 -10 -9 -9 -9 -8 -------- Run | Yrd Mat Mat Min Exi Min Hostile Shots Fired 138 | . 49 76 1 . 12 Missed 30 | . 14 14 1 . 1 Hits 108 | . 35 62 . . 11 Melee 5 | . . 5 . . . Projectile 103 | . 35 57 . . 11 Critical Strikes 4 | . 1 3 . . . Part Disruptions 1 | . . 1 . . . Damage Taken 1496 | . 328 1006 41 . 121 Core 506 | . 98 370 20 . 18 Absorbed by Shields . | . . . . . . Core Remaining (%) 80 | 100 60 . . . . Volleys Fired 89 | . 20 58 4 . 7 Largest 2 | . 2 2 1 . 1 Hottest 120 | . 40 50 33 . 120 Shots Fired 151 | . 40 99 4 . 8 Gun 117 | . 40 77 . . . Cannon 7 | . . . . . 7 Launcher 27 | . . 22 4 . 1 Special . | . . . . . . Kinetic 117 | . 40 77 . . . Thermal 7 | . . . . . 7 Explosive 20 | . . 20 . . . Electromagnetic 7 | . . 2 4 . 1 Robot Hit Streak 17 | . 7 17 3 . 10 Robot Miss Streak 5 | . 5 3 . . . Penetration Max . | . . . . . . Secondary Targets 2 | . 2 . . . . Max Gunslinging Chain 1 | . 1 . . . . Shots Hit Robots 73 | . 25 40 1 . 7 Core Hits 60 | . 11 45 2 . 2 Critical Kills . | . . . . . . Critical Parts Destroyed . | . . . . . . Critical Strikes . | . . . . . . Melee Attacks . | . . . . . . Impact . | . . . . . . Slashing . | . . . . . . Piercing . | . . . . . . Sneak Attacks . | . . . . . . Combat Hostiles . | . . . . . . Follow-up Attacks . | . . . . . . Damage Inflicted 2774 | . 322 1893 304 . 255 Guns 965 | . 322 643 . . . Cannons 255 | . . . . . 255 Explosions 1520 | . . 1216 304 . . Melee . | . . . . . . Ramming 34 | . . 34 . . . Kinetic 965 | . 322 643 . . . Thermal 451 | . . . 196 . 255 Explosive 1200 | . . 1200 . . . Electromagnetic 124 | . . 16 108 . . Impact . | . . . . . . Slashing . | . . . . . . Piercing . | . . . . . . Highest Corruption 2 | . 1 . 1 1 2 Average Corruption 1 | . 1 . 1 1 1 Corruption Purged . | . . . . . . Corruption Blocked . | . . . . . . Effects 11 | . . . . 1 10 Message Errors 3 | . . . . . 3 Matter Fused 2 | . . . . . 2 Heat Flow Errors 2 | . . . . 1 1 Energy Discharges 1 | . . . . . 1 Data Loss (minor) 1 | . . . . . 1 Data Loss (major) 1 | . . . . . 1 Misfires 1 | . . . . . 1 Overload Shots . | . . . . . . Overflow Damage 118 | . . 38 31 . 49 Projectiles 49 | . . . . . 49 Explosions 69 | . . 38 31 . . Melee . | . . . . . . Knockbacks . | . . . . . . Impact . | . . . . . . Kinetic . | . . . . . . Secondary . | . . . . . . Self-Inflicted Damage 258 | . . 197 41 . 20 Shots 11 | . . 7 3 . 1 Rammed 9 | . . 9 . . . Targets Rammed 9 | . . 9 . . . Kicked . | . . . . . . Crushed . | . . . . . . Highest Temperature 526 | . 9 4 . 99 526 Average Temperature 183 | . 4 2 . 56 231 Received Heat Transfer 285 | . 108 177 . . . Effects 3 | . . . . . 3 Shutdowns 1 | . . . . . 1 Interference 2 | . . . . . 2 Siege Activations . | . . . . . . Martial Activations . | . . . . . . Shielding Activations . | . . . . . . Robots Disrupted . | . . . . . . Combat Hostiles . | . . . . . . Robots Corrupted . | . . . . . . Combat Hostiles . | . . . . . . Parts Fried . | . . . . . . Impact Corruptions . | . . . . . . Robots Melted . | . . . . . . Combat Hostiles . | . . . . . . Parts Melted 1 | . . . . . 1 Heat Transferred 760 | . . . 200 . 560 Parts Sabotaged . | . . . . . . Parts Stolen . | . . . . . . Parts Stripped . | . . . . . . Power Chain Reactions 1 | . . . 1 . . Alert | -11 -10 -9 -9 -9 -8 ------- Run | Yrd Mat Mat Min Exi Min Maximum Alert Level 2 | . . 2 . . . Low Security (%) 82 | 100 100 31 100 . 100 Level 1 8 | . . 30 . . . Level 2 9 | . . 37 . . . Level 3 . | . . . . . . Level 4 . | . . . . . . Level 5 . | . . . . . . High Security . | . . . . . . Max Security . | . . . . . . Peak Influence 471 | . 92 471 172 . 90 Initial 153 | . . . 153 . . Average 93 | . 32 272 127 . 5 Influence Increases 1137 | . 149 784 114 . 90 Destroy 0b10 Robot/C 640 | . 100 420 40 . 80 Destroy 0b10 Robot/NC 80 | . 15 60 5 . . Destroy Leader 138 | . 22 96 10 . 10 Successful Hack 12 | . 12 . . . . Disable Machine 120 | . . 105 15 . . Destroy Structure 117 | . . 103 14 . . Lose Combat Pursuer 30 | . . . 30 . . Influence Decreases 1137 | . 149 391 420 87 90 Entered New Map 327 | . . . 240 87 . Time Decay 750 | . 149 331 180 . 90 Lost Part 60 | . . 60 . . . Squads Dispatched 5 | . 3 2 . . . Investigation . | . . . . . . Extermination . | . . . . . . Reinforcement 5 | . 3 2 . . . Assault . | . . . . . . Garrison . | . . . . . . Intercept . | . . . . . . Searches Triggered . | . . . . . . Construction Impeded 1 | . . 1 . . . Haulers Reinforced . | . . . . . . Active Scanning Responses . | . . . . . . Cargo Convoy Interrupts . | . . . . . . Stealth | -11 -10 -9 -9 -9 -8 --------- Run | Yrd Mat Mat Min Exi Min Distress Signals 3 | . 1 2 . . . Communications Jammed . | . . . . . . Distress Signals . | . . . . . . Times Spotted 45 | . 14 25 2 . 4 Peak Tracking Total 6 | . 4 6 1 . 3 Tactical Retreats 2 | . . . 2 . . Traps | -11 -10 -9 -9 -9 -8 ------- Run | Yrd Mat Mat Min Exi Min Traps Triggered 7 | . 1 6 . . . Indirectly 5 | . . 5 . . . Trap Hack Attempts . | . . . . . . Triggered . | . . . . . . Disarmed . | . . . . . . Reprogrammed . | . . . . . . Reused . | . . . . . . Traps Extracted . | . . . . . . Installed . | . . . . . . Triggered . | . . . . . . Machines | -11 -10 -9 -9 -9 -8 ---------- Run | Yrd Mat Mat Min Exi Min Machines Disabled 8 | . . 7 1 . . Max in Single Turn 1 | . . 1 1 . . Machines Repaired . | . . . . . . Machines Dismantled . | . . . . . . Machines Sabotaged . | . . . . . . Overloaded Fab Kills . | . . . . . . Hacking | -11 -10 -9 -9 -9 -8 --------- Run | Yrd Mat Mat Min Exi Min Machines Accessed 3 | . 1 1 . 1 . Terminals 1 | . 1 . . . . Fabricators . | . . . . . . Repair Stations . | . . . . . . Recycling Units 1 | . . 1 . . . Scanalyzers . | . . . . . . Garrison Access . | . . . . . . Total Hacks 6 | . 3 2 . 1 . Successful 4 | . 2 1 . 1 . Failed 2 | . 1 1 . . . Catastrophic . | . . . . . . Database Lockouts . | . . . . . . Manual 1 | . . . . 1 . Terminals 3 | . 3 . . . . Fabricators . | . . . . . . Repair Stations . | . . . . . . Recycling Units 2 | . . 2 . . . Scanalyzers . | . . . . . . Garrison Access . | . . . . . . Terminal Hacks 3 | . 2 . . 1 . Branch Access Points 1 | . 1 . . . . Hauler Manifests 1 | . 1 . . . . Proto ID Catalog 1 | . . . . 1 . Fabricator Hacks . | . . . . . . Repair Station Hacks . | . . . . . . Recycling Unit Hacks 1 | . . 1 . . . Retrieve Matter 1 | . . 1 . . . Scanalyzer . | . . . . . . Garrison Access Hacks . | . . . . . . Unauthorized Hacks . | . . . . . . Terminals . | . . . . . . Fabricators . | . . . . . . Repair Stations . | . . . . . . Recycling Units . | . . . . . . Scanalyzers . | . . . . . . Garrison Access . | . . . . . . Data Cores Recovered . | . . . . . . Used . | . . . . . . Hacking Detections 2 | . 1 1 . . . Full Trace Events . | . . . . . . Feedback Events . | . . . . . . Feedback Blocked . | . . . . . . Robot Schematics Acquired . | . . . . . . Robots Built . | . . . . . . Authchips . | . . . . . . Time . | . . . . . . Total Robot Build Rating . | . . . . . . Part Schematics Acquired . | . . . . . . Parts Built . | . . . . . . Authchips . | . . . . . . Time . | . . . . . . Total Part Build Rating . | . . . . . . Parts Repaired . | . . . . . . Time . | . . . . . . Parts Recycled . | . . . . . . Recycled Matter . | . . . . . . Retrieved Matter . | . . . . . . Retrieved Components . | . . . . . . Parts Scanalyzed . | . . . . . . Part Schematics Acquired . | . . . . . . Parts Damaged . | . . . . . . Bothacking | -11 -10 -9 -9 -9 -8 ------------ Run | Yrd Mat Mat Min Exi Min Used RIF Installer . | . . . . . . Robots Hacked . | . . . . . . Non-combat . | . . . . . . Combat . | . . . . . . Robot Hacks Applied . | . . . . . . Relay Couplers Released . | . . . . . . Fabnet Peak Effective % . | . . . . . . Robots Rewired . | . . . . . . Allies Hacked . | . . . . . . Hacks Repelled . | . . . . . . Allies | -11 -10 -9 -9 -9 -8 -------- Run | Yrd Mat Mat Min Exi Min Total Allies . | . . . . . . Largest Group . | . . . . . . Highest-Rated Group . | . . . . . . Highest-Rated Ally . | . . . . . . Total Orders . | . . . . . . Ally Attacks . | . . . . . . Total Damage . | . . . . . . Kills . | . . . . . . Allies Corrupted . | . . . . . . Allies Melted . | . . . . . . Intel | -11 -10 -9 -9 -9 -8 ------- Run | Yrd Mat Mat Min Exi Min Active Infowar (turns) . | . . . . . . Robot Analysis Total . | . . . . . . Derelict Logs Recovered 1 | . . . 1 . . Drone Launches . | . . . . . . Drone Recoveries . | . . . . . . Exploration | -11 -10 -9 -9 -9 -8 ------------- Run | Yrd Mat Mat Min Exi Min Turns Passed 3702 | 81 392 842 378 499 1510 Spaces Moved 1505 | 57 198 412 207 244 387 Core 270 | 20 . 250 . . . Treads 1235 | 37 198 162 207 244 387 Legs . | . . . . . . Wheels . | . . . . . . Hover . | . . . . . . Flight . | . . . . . . Fastest Speed 50 | 50 160 50 160 160 240 Average Speed 183 | 125 160 152 160 198 240 Slowest Speed 250 | 160 160 250 160 240 240 Overloaded Moves . | . . . . . . Propulsion Burnouts . | . . . . . . Robots Hopped . | . . . . . . Potential Cave-ins . | . . . . . . Cave-ins Triggered . | . . . . . . Exploration Rate (%) 42 | 4 40 31 57 63 58 Regions Visited 5 Branch Regions 3 Pre-discovered Areas 1 | . . . 1 . . Known Exits Taken 3 | . . 1 1 1 . Unknown Exits Taken 2 | 1 1 . . . . Scrap Searched 1 | . . . 1 . . Spaces Dug 17 | . . 17 . . . Terrain Destroyed 124 | . . 107 17 . . Melee . | . . . . . . Projectile . | . . . . . . AOE 124 | . . 107 17 . . Terrain Rammed . | . . . . . . Walls Destroyed . | . . . . . . Machines Disabled . | . . . . . . Actions | -11 -10 -9 -9 -9 -8 --------- Run | Yrd Mat Mat Min Exi Min Total 2299 | 66 233 524 251 263 962 Wait 638 | . 8 19 34 9 568 Move 1500 | 56 197 411 206 243 387 Hop . | . . . . . . Pick Up 25 | 5 6 8 2 4 . Fast Attach 6 | . . 5 1 . . Attach 13 | 5 2 6 . . . Detach . | . . . . . . Swap 8 | . . 5 . 3 . Drop 11 | . . 3 4 4 . Fire 89 | . 20 58 4 . 7 Melee . | . . . . . . Ram 9 | . . 9 . . . Kick . | . . . . . . Crush . | . . . . . . Escape Stasis . | . . . . . . Rewire . | . . . . . . Trap . | . . . . . . Miscellaneous . | . . . . . . Route ------- -11/Scrapyard -10/Materials (discovered 3 exits: *Mat x2 / Min) -9/Materials -9/Mines -9/Exiles -8/Mines History --------- Turn | Location | Event 4 | -11/Scrapyard | Discovered new exit (range 14) 82 | -11/Scrapyard | Entered Materials 282 | -10/Materials | Discovered new exit (range 10) 309 | -10/Materials | Build established: Mutant 370 | -10/Materials | Identified exit to Mines 409 | -10/Materials | Discovered new exit (range 11) 474 | -10/Materials | Entered another Materials area 474 | -9/Materials | Evolved 2 slots: Utility x2 596 | -9/Materials | Lost 3 parts (1n1u1w) 930 | -9/Materials | Destroyed 7 combat bots 939 | -9/Materials | Core integrity fell below 50% 975 | -9/Materials | Core integrity fell below 20% 1214 | -9/Materials | Discovered new exit (range 16) 1302 | -9/Materials | Identified exit to Mines 1316 | -9/Materials | Entered Mines 1366 | -9/Mines | Found a Scrap Suit stashed away for nefarious purposes 1370 | -9/Mines | Found Scrap Suit 1408 | -9/Mines | Found a damaged Exp. Sensor Array with a note attached 1417 | -9/Mines | Found Prototype Device 1526 | -9/Mines | Learned location of Storage (-8) 1687 | -9/Mines | Deemed a non-threat by the Exiles lab entrance 1687 | -9/Mines | Discovered new exit (range 5) 1692 | -9/Mines | Identified exit to Exiles 1694 | -9/Mines | Entered Exiles 1738 | -9/Exiles | Met 8R-AWN 1762 | -9/Exiles | Met EX-HEX 1810 | -9/Exiles | Met EX-BIN 1842 | -9/Exiles | Aligned with FarCom system 1843 | -9/Exiles | Given EX-Vault access code 1891 | -9/Exiles | Opened EX-Vault 1901 | -9/Exiles | Found Gui. Plasma Cannon 1996 | -9/Exiles | Warned to stay clear of 0b10 Research branches 2075 | -9/Exiles | Met EX-DEC 2162 | -9/Exiles | Discovered new exit (range 14) 2188 | -9/Exiles | Identified exit to Mines 2193 | -9/Exiles | Left Exiles lab with Gui. Plasma Cannon 2193 | -9/Exiles | Entered Mines 3703 | -8/Mines | Destroyed by H-55 Commando with Gauss Rifle Last Messages --------------- K-01 Serf collects debris. ERI:ZDKKTFO T-07 Excavator is excavating. System corrupted: Component data lost. U-05 Engineer lays Concrete. U-05 Engineer builds a Wall. System corrupted: Energy discharge (-61). System corrupted: Substantial component data lost. P 0FRPGJ3UJM3COJOMJLSK System corrupted: Matter fused (-9). System corrupted: Heat flow error (+158). K-01 Serf cleans the Laser Drill. System corrupted: FCS attempts to trigger EMP Blaster. System corrupted: EMP Blaster misfires. C-30 ARC bursts open, deploying its payload. H-55 Commando unfolds itself. Penetrated by Slug. Map ----- +----------------------------------------------------+ | ???## # #??????## ?????????????? | | ????## ## #### #??????????????????????? | | ?????##### #??? #??????????????????????? | | ?????????# #???? ??????????????????????? | | ???####### #?? ?????????????????????? | | ???# #?? ? ????????????????????? | | ???# ########?? ??????????????????????? | | ???# ##???????? ??????????????????????? | | ??## ##??????# #??????????????????????? | | ??# ##?????# #??????????????????????? | | ??# #?????# #??????????????????????? | | ??## ##????# #??????????????????????? | | ???# ##???# #??????????????????????? | | ???# ##??# ??????????????????????? | | ??## #??# #??????????????????????? | | ??# #??# #??????????????????????? | | ?# ### ##??# #??????????????????????? | | # ##?## #???# #??????????????????????? | | # ????# ##### #??????????????????????? | | # ????# #??????????????????????? | | # ????####### ###????????????????????? | | ??????????# #????????????????????? | | #??????????# #????????????????????? | | # ???????????### #????????????????????? | | # ?????????????# ############ #?? | | ? ??????????????# u @ %h #?? | | ????????????????################ #??? | | ????????????????????????????????????????? | | ????????????????????????????????????????? | | ????????????????????????????????????????? | | ????????????????????????????????????????? | | ?????????????????????????g??????????????? | | ????????????????????????gg??????????????? | | ????????????????????????????????????????? | | ????????????????????????????????????????? | | ????????????????????????????????????????? | | ????????????????????????????????????????? | | ????????????????????????????????????????? | | ????????????????????????????????????????? | | ????????????????????????????????????????? | | ????????????????????????????????????????? | | | | | | | | | | | | | | | | | | | +----------------------------------------------------+ Best States ------------- Heat Dissipation 28 Energy Generation 14 Energy Capacity 280 Matter Stores 240 Matter Capacity 300 Sight Range 16 Terrain Scan Density 10 Evasion (%) 50 Targeting Accuracy 12 Recoil Reduction 2 Offensive Hacking 10 Trap Extractor Capacity 4 Item Schematics ----------------- None Robot Schematics ------------------ None Fabricated ------------ Nothing Repaired ---------- Nothing Alien Tech Used ----------------- None Achievements -------------- None Challenges ------------ None Game ------ Seed BattleReinforcedNeutralizer Manual? 0 Play Time 00:22:42 Cumulative 45.7 hours Start 2025.07.11 @ 21:49:01 End 2025.07.11 @ 22:14:03 Sessions 1 Manual Loads 0 Difficulty Rogue Special Mode None Game No. 212 Rogue 212 Adventurer 0 Explorer 0 Win Type - Total 0 Types 0/0/0/0/0/0/0/0/0/0 Lore% 32 Gallery% 26 Achievement% 23 Wizard Run 0 Options --------- Layout 2 ASCII 0 Keyboard 0 Movement Mouse Keybinds 0 Fullscreen 1 Font 24/Smallcaps Map View 50x44 Zoom Use 0% Tactical HUD 0 Map Filters NONE Filters NONE Steam 1 RUN: 1409cbcd-7f7d-444c-b39b-85fa31bd116c